fUSD/lending_fUSD_20240528
["ID","MTS","AMOUNT","RATE_DAILY","PERIOD"]
[328110173,1716870481315,2550.07792439,0.00010477,2]
[328110174,1716870489848,-4000.0,0.00013967,2]
[328110175,1716870490440,-4000.0,0.00013967,2]
[328110176,1716870503415,2550.07792439,0.00010477,2]
[328110178,1716870511331,-1301.63982844,0.00013269,2]
[328110179,1716870511352,-1246.52348474,0.00013965,2]
[328110180,1716870511378,-1451.83668682,0.00013966,2]
[328110181,1716870511931,-4000.0,0.00013966,2]
[328110182,1716870512526,-126.81531196,0.00013966,2]
[328110183,1716870512546,-1897.83949895,0.00013966,2]
[328110184,1716870512567,-1975.34518909,0.00013967,2]
[328110185,1716870513104,-4000.0,0.00013967,2]
[328110186,1716870516363,-4000.0,0.00013967,2]
[328110187,1716870517179,-4000.0,0.00013967,2]
[328110188,1716870517979,-4000.0,0.00013967,2]
[328110189,1716870518670,-4000.0,0.00013967,2]
[328110190,1716870519323,606.83790776,7.858e-05,2]
[328110191,1716870519744,313839.4024541,0.00010477,2]
[328110428,1716870631474,-314.36267157,0.00013962,2]
[328110429,1716870631483,-687.1486291,0.00013963,2]
[328110430,1716870631492,-1610.36472086,0.00013965,2]
[328110431,1716870631503,-181.52127291,0.00013965,2]
[328110432,1716870631512,-1106.16332012,0.00013967,2]
[328110433,1716870631521,-1003.61540712,0.00013967,2]
[328110434,1716870631532,-1200.22252239,0.00013967,2]
[328110435,1716870631543,-1796.16207049,0.00013967,2]
[328110436,1716870631553,-201.02368093,0.00013967,2]
[328110437,1716870631563,-1394.67556858,0.00013967,2]
[328110438,1716870631575,-426.05495409,0.00013967,2]
[328110439,1716870631585,-445.48092694,0.00013967,2]
[328110440,1716870631595,-598.99265311,0.00013968,2]
[328110441,1716870631605,-7072.37145586,0.00013968,2]
[328110442,1716870631616,-364.18813852,0.00013968,2]
[328110443,1716870631627,-1087.10900317,0.00013968,2]
[328110444,1716870631639,-3749.66154191,0.00013968,2]
[328110445,1716870631650,-3002.23633276,0.00013968,2]
[328110446,1716870631661,-9313.21597719,0.00013968,2]
[328110447,1716870631672,-627.85298596,0.00013968,2]
[328110448,1716870631684,-1521.76221221,0.00013968,2]
[328110449,1716870631695,-3360.75131799,0.00013968,2]
[328110450,1716870631709,-4124.89055274,0.00013968,2]
[328110451,1716870633538,-947.56950504,0.00013968,2]
[328110452,1716870633550,-8765.97431311,0.00013968,2]
[328110453,1716870633561,-664.03948097,0.00013968,2]
[328110454,1716870633573,-551.98723799,0.00013968,2]
[328110455,1716870633585,-13558.53816001,0.00013968,2]
[328110460,1716870634121,-529.50925547,0.00013968,2]
[328110461,1716870634158,535743.13267442,0.00010477,2]
[328110471,1716870637531,-1203.83402063,0.00013968,2]
[328110472,1716870637541,-19776.74852209,0.00013969,2]
[328110473,1716870637552,-158.38,0.00013973,2]
[328110474,1716870637562,-152.73,0.00013973,2]
[328110475,1716870637572,-155.0,0.00017258,2]
[328110476,1716870637582,-15618.01004022,0.00017259,2]
[328110477,1716870637591,-318.55,0.00023426,2]
[328110478,1716870637600,-155.33952005,0.00024404,2]
[328110479,1716870637610,-1050.0,0.00025,2]
[328110480,1716870637620,-6965.69,0.00025607,2]
[328110481,1716870637630,-318.55,0.00025689,2]
[328110482,1716870637639,-151.0104416,0.00026143,2]
[328110483,1716870637650,-250.0,0.00026256,2]
[328110484,1716870637661,-1150.48,0.00026287,2]
[328110485,1716870637672,-1333.16,0.00026824,2]
[328110486,1716870637686,-805.91709047,0.0002739,2]
[328110487,1716870637697,-150.2,0.00027853,2]
[328110488,1716870637707,-170.17,0.00027911,2]
[328110489,1716870637723,-318.55,0.00027953,2]
[328110490,1716870637734,-153.72660855,0.00027996,2]
[328110491,1716870637745,-424.32,0.00028056,2]
[328110492,1716870637757,-609.28,0.00029125,2]
[328110493,1716870637768,-1135.67371037,0.000294,2]
[328110494,1716870637778,-1123.11900043,0.000294,2]
[328110495,1716870637789,-151.0104416,0.00029498,2]
[328110496,1716870637801,-188.64,0.00029575,3]
[328110497,1716870637812,-342.869,0.00029585,2]
[328110498,1716870637823,-357.0,0.00029585,2]
[328110499,1716870637834,-154.6,0.00029598,2]
[328110500,1716870637845,-22894.34,0.00029762,2]
[328110501,1716870637855,-167.27008074,0.000298,2]
[328110502,1716870637866,-4760.9772,0.000299,2]
[328110503,1716870637876,-1181.07695692,0.00029998,2]
[328110504,1716870637886,-328.01060738,0.00029998,2]
[328110505,1716870637897,-155.3108415,0.00029998,2]
[328110506,1716870637907,-155.15419937,0.00029999,2]
[328110507,1716870637918,-155.66976384,0.00029999,2]
[328110508,1716870637928,-19427.2898834,0.0003,4]
[328110509,1716870637939,-1373.66355703,0.0003,4]
[328110510,1716870637948,-20267.72181649,0.0003,4]
[328110511,1716870637959,-155.3444395,0.0003,4]
[328110513,1716870637974,-500.0,0.00030136,6]
[328110515,1716870637983,-500.0,0.00030136,6]
[328110517,1716870637992,-500.0,0.00030136,6]
[328110518,1716870638001,-500.0,0.00030136,6]
[328110519,1716870638010,-500.0,0.00030136,6]
[328110520,1716870638020,-318.55,0.00030217,2]
[328110521,1716870638029,-167.27008074,0.00030393,10]
[328110522,1716870638039,-963.3685057,0.0003063,4]
[328110523,1716870638049,-377.28,0.00030945,3]
[328110524,1716870638059,-167.27008074,0.00030986,10]
[328110525,1716870638069,-306.44392398,0.00031284,2]
[328110526,1716870638078,-2100.0,0.00031347,2]
[328110527,1716870638089,-1741.55,0.00031466,2]
[328110528,1716870638100,-416.21,0.00031466,2]
[328110529,1716870638110,-871.06,0.00031466,2]
[328110530,1716870638119,-416.21,0.00031466,2]
[328110531,1716870638129,-871.06,0.00031466,2]
[328110532,1716870638140,-424.32,0.00031563,2]
[328110533,1716870638150,-155.72361371,0.00031574,7]
[328110534,1716870638160,-167.27008074,0.0003158,10]
[328110535,1716870638171,-1083.27040313,0.00031597,2]
[328110536,1716870638181,-1410.8306631,0.00031597,4]
[328110537,1716870638191,-150.0,0.00031882,2]
[328110538,1716870638200,-564.799175,0.000319,2]
[328110539,1716870638211,-306.44392398,0.00031975,2]
[328110540,1716870638231,-334.02343811,0.00032,4]
[328110541,1716870638242,-167.27008074,0.00032173,10]
[328110542,1716870638252,-633.61718875,0.00032242,5]
[328110543,1716870638263,-556.94643621,0.00032242,30]
[328110545,1716870638273,-291.0239333,0.00032242,4]
[328110547,1716870638284,-2500.0,0.0003233,2]
[328110549,1716870638294,-300.0,0.000324,2]
[328110551,1716870638304,-871.06,0.00032425,2]
[328110553,1716870638316,-416.21,0.00032425,2]
[328110554,1716870638326,-416.21,0.00032425,2]
[328110555,1716870638338,-416.21,0.00032425,2]
[328110556,1716870638348,-416.21,0.00032425,2]
[328110557,1716870638358,-832.42,0.00032425,2]
[328110558,1716870638368,-871.06,0.00032425,2]
[328110559,1716870638377,-871.06,0.00032425,2]
[328110560,1716870638387,-416.21,0.00032425,2]
[328110561,1716870638397,-1742.12,0.00032425,2]
[328110562,1716870638408,-416.21,0.00032425,2]
[328110563,1716870638417,-871.06,0.00032425,2]
[328110564,1716870638427,-871.06,0.00032425,2]
[328110565,1716870638437,-416.21,0.00032425,2]
[328110566,1716870638447,-871.06,0.00032425,2]
[328110567,1716870638456,-871.06,0.00032425,2]
[328110568,1716870638469,-416.21,0.00032425,2]
[328110569,1716870638480,-871.06,0.00032425,2]
[328110570,1716870638490,-416.21,0.00032425,2]
[328110571,1716870638499,-871.06,0.00032425,2]
[328110572,1716870638508,-203.69,0.00032425,2]
[328110573,1716870638517,-416.21,0.00032425,2]
[328110574,1716870638527,-416.21,0.00032425,2]
[328110575,1716870638537,-416.21,0.00032425,2]
[328110576,1716870638545,-416.21,0.00032425,2]
[328110577,1716870638555,-416.21,0.00032425,2]
[328110578,1716870638564,-416.21,0.00032425,2]
[328110579,1716870638574,-412.26,0.00032425,2]
[328110580,1716870638584,-151.0104416,0.00032435,7]
[328110581,1716870638593,-150.0,0.0003247,2]
[328110582,1716870638602,-150.0,0.00032478,2]
[328110583,1716870638612,-150.0,0.00032479,2]
[328110584,1716870638622,-318.55,0.00032481,2]
[328110585,1716870638631,-150.0,0.00032491,2]
[328110586,1716870638640,-700.0,0.00032506,10]
[328110587,1716870638650,-700.0,0.00032506,10]
[328110588,1716870638659,-150.0,0.00032519,2]
[328110589,1716870638669,-150.0,0.0003252,2]
[328110590,1716870638678,-150.0,0.0003253,2]
[328110591,1716870638687,-150.0,0.00032549,2]
[328110592,1716870638697,-150.0,0.00032558,2]
[328110593,1716870638706,-150.0,0.00032562,2]
[328110594,1716870638716,-150.0,0.00032578,2]
[328110595,1716870638729,-357.0,0.00032585,2]
[328110596,1716870638738,-150.0,0.00032589,2]
[328110597,1716870638747,-802.54336724,0.00032599,4]
[328110598,1716870638756,-150.0,0.00032602,2]
[328110599,1716870638764,-871.06,0.0003263,2]
[328110600,1716870638773,-871.06,0.0003263,2]
[328110601,1716870638782,-869.35,0.0003263,2]
[328110602,1716870638791,-150.0,0.00032636,2]
[328110603,1716870638800,-150.0,0.00032639,2]
[328110604,1716870638810,-150.0,0.00032652,2]
[328110605,1716870638819,-150.0,0.00032654,2]
[328110606,1716870638829,-150.0,0.00032659,2]
[328110607,1716870638838,-306.44392398,0.00032667,2]
[328110608,1716870638847,-150.0,0.00032674,2]
[328110609,1716870638857,-500.0,0.00032686,2]
[328110610,1716870638866,-150.0,0.00032699,2]
[328110611,1716870638876,-150.0,0.00032699,2]
[328110612,1716870638885,-421.43,0.00032699,2]
[328110613,1716870638894,-163.73,0.00032699,2]
[328110614,1716870638904,-150.0,0.00032699,2]
[328110615,1716870638914,-151.75,0.00032699,2]
[328110616,1716870638923,-352.4,0.00032699,2]
[328110617,1716870638933,-301.05,0.00032699,2]
[328110618,1716870638944,-150.0,0.00032699,2]
[328110619,1716870638954,-150.0,0.00032699,2]
[328110620,1716870638964,-421.43,0.00032699,2]
[328110621,1716870638978,-150.0,0.00032699,2]
[328110622,1716870638987,-1055.31,0.00032699,2]
[328110623,1716870638996,-150.0,0.00032699,2]
[328110624,1716870639006,-163.73,0.00032699,2]
[328110625,1716870639016,-352.4,0.00032699,2]
[328110626,1716870639025,-150.0,0.00032699,2]
[328110627,1716870639036,-150.0,0.00032739,2]
[328110628,1716870639046,-167.27008074,0.00032766,10]
[328110629,1716870639057,-150.0,0.00032777,2]
[328110630,1716870639067,-354.72470808,0.00032781,7]
[328110631,1716870639078,-2565.66,0.00032794,2]
[328110632,1716870639088,-1000.0,0.000328,2]
[328110633,1716870639099,-7900.9575,0.000328,2]
[328110634,1716870639110,-316.24,0.000328,2]
[328110635,1716870639120,-500.0,0.00032847,3]
[328110636,1716870639130,-500.0,0.00032856,3]
[328110637,1716870639140,-500.0,0.00032865,3]
[328110638,1716870639150,-500.0,0.00032874,3]
[328110639,1716870639160,-500.0,0.00032882,3]
[328110640,1716870639170,-163.68874087,0.0003289,2]
[328110641,1716870639180,-500.0,0.00032891,3]
[328110642,1716870639190,-205.72763628,0.00032898,4]
[328110643,1716870639200,-406.6086735,0.00032899,4]
[328110644,1716870639211,-219.86406062,0.000329,4]
[328110645,1716870639230,-500.0,0.000329,3]
[328110646,1716870639241,-4986.0589703,0.000329,3]
[328110647,1716870639251,-189.37624096,0.000329,2]
[328110648,1716870639262,-922.17450291,0.000329,2]
[328110649,1716870639271,-2000.0,0.000329,2]
[328110650,1716870639281,-300.0,0.000329,2]
[328110651,1716870639290,-1006.58,0.000329,2]
[328110652,1716870639300,-316.24,0.000329,2]
[328110653,1716870639310,-150.0,0.00032908,2]
[328110654,1716870639320,-163.68874082,0.00032968,2]
[328110655,1716870639329,-400.0,0.0003297,2]
[328110657,1716870639340,-500.0,0.00032988,6]
[328110658,1716870639349,-500.0,0.00032988,6]
[328110660,1716870639359,-500.0,0.00032988,6]
[328110662,1716870639368,-500.0,0.00032989,6]
[328110664,1716870639378,-500.0,0.00032989,6]
[328110666,1716870639387,-500.0,0.00032989,6]
[328110668,1716870639397,-1255.77,0.00032989,6]
[328110670,1716870639407,-500.0,0.00032989,6]
[328110672,1716870639416,-9396.4311982,0.0003299,2]
[328110674,1716870639426,-62925.9033305,0.0003299,2]
[328110676,1716870639435,-1237.2052303,0.0003299,2]
[328110678,1716870639445,-1002.0717,0.00032999,2]
[328110680,1716870639455,-500.0,0.00032999,6]
[328110682,1716870639464,-500.0,0.00032999,6]
[328110684,1716870639478,-500.0,0.00032999,6]
[328110686,1716870639487,-517.38790979,0.00032999,6]
[328110688,1716870639497,-500.0,0.00032999,6]
[328110690,1716870639506,-500.0,0.00032999,6]
[328110692,1716870639516,-500.0,0.00032999,6]
[328110711,1716870639697,-68340.08241659,0.00033,3]
[328110713,1716870639707,-16656.39399891,0.00033,7]
[328110715,1716870639718,-3331.14679649,0.00033,14]
[328110717,1716870639732,-190.14817262,0.00033,7]
[328110719,1716870639742,-500.0,0.00033,2]
[328110721,1716870639752,-9260.29655249,0.00033,2]
[328110723,1716870639762,-3000.0,0.00033,30]
[328110725,1716870639771,-150.0,0.00033,9]
[328110727,1716870639781,-344.0,0.00033,6]
[328110729,1716870639791,-689.0,0.00033,6]
[328110731,1716870639802,-689.0,0.00033,6]
[328110733,1716870639811,-155.0,0.00033,4]
[328110735,1716870639822,-160.0,0.00033,6]
[328110737,1716870639832,-500.0,0.00033,2]
[328110739,1716870639843,-500.0,0.00033,2]
[328110741,1716870639854,-500.0,0.00033,2]
[328110742,1716870639864,-500.0,0.00033,2]
[328110743,1716870639875,-500.0,0.00033,2]
[328110744,1716870639885,-500.0,0.00033,2]
[328110745,1716870639896,-500.0,0.00033,2]
[328110746,1716870639906,-500.0,0.00033,2]
[328110747,1716870639916,-500.0,0.00033,2]
[328110748,1716870639927,-500.0,0.00033,2]
[328110749,1716870639938,-500.0,0.00033,2]
[328110750,1716870639948,-500.0,0.00033,2]
[328110751,1716870639958,-500.0,0.00033,2]
[328110752,1716870639968,-500.0,0.00033,2]
[328110753,1716870639983,-500.0,0.00033,2]
[328110754,1716870639995,-500.0,0.00033,2]
[328110755,1716870640005,-500.0,0.00033,2]
[328110756,1716870640015,-500.0,0.00033,2]
[328110757,1716870640027,-500.0,0.00033,2]
[328110758,1716870640038,-500.0,0.00033,2]
[328110759,1716870640048,-500.0,0.00033,2]
[328110760,1716870640058,-500.0,0.00033,2]
[328110761,1716870640068,-500.0,0.00033,2]
[328110763,1716870640079,-500.0,0.00033,2]
[328110765,1716870640089,-500.0,0.00033,2]
[328110767,1716870640099,-500.0,0.00033,2]
[328110768,1716870640109,-500.0,0.00033,2]
[328110769,1716870640119,-500.0,0.00033,2]
[328110770,1716870640128,-500.0,0.00033,2]
[328110771,1716870640138,-500.0,0.00033,2]
[328110772,1716870640148,-500.0,0.00033,2]
[328110773,1716870640158,-500.0,0.00033,2]
[328110774,1716870640168,-500.0,0.00033,2]
[328110775,1716870640179,-500.0,0.00033,2]
[328110776,1716870640189,-500.0,0.00033,2]
[328110777,1716870640199,-500.0,0.00033,2]
[328110778,1716870640211,-500.0,0.00033,2]
[328110779,1716870640228,-500.0,0.00033,2]
[328110780,1716870640238,-500.0,0.00033,2]
[328110781,1716870640249,-500.0,0.00033,2]
[328110782,1716870640259,-500.0,0.00033,2]
[328110783,1716870640267,-500.0,0.00033,2]
[328110784,1716870640275,-500.0,0.00033,2]
[328110785,1716870640285,-500.0,0.00033,2]
[328110786,1716870640295,-500.0,0.00033,2]
[328110787,1716870640305,-500.0,0.00033,2]
[328110788,1716870640316,-500.0,0.00033,2]
[328110789,1716870640326,-500.0,0.00033,2]
[328110790,1716870640336,-500.0,0.00033,2]
[328110791,1716870640345,-500.0,0.00033,2]
[328110792,1716870640356,-500.0,0.00033,2]
[328110793,1716870640366,-500.0,0.00033,2]
[328110794,1716870640377,-500.0,0.00033,2]
[328110795,1716870640387,-500.0,0.00033,2]
[328110796,1716870640396,-500.0,0.00033,2]
[328110797,1716870640407,-500.0,0.00033,2]
[328110798,1716870640417,-500.0,0.00033,2]
[328110799,1716870640427,-500.0,0.00033,2]
[328110800,1716870640436,-500.0,0.00033,2]
[328110801,1716870640446,-500.0,0.00033,2]
[328110802,1716870640456,-500.0,0.00033,2]
[328110803,1716870640466,-500.0,0.00033,2]
[328110804,1716870640478,-500.0,0.00033,2]
[328110805,1716870640488,-500.0,0.00033,2]
[328110806,1716870640497,-500.0,0.00033,2]
[328110807,1716870640508,-500.0,0.00033,2]
[328110808,1716870640517,-500.0,0.00033,2]
[328110809,1716870640527,-500.0,0.00033,2]
[328110810,1716870640536,-500.0,0.00033,2]
[328110811,1716870640546,-575.219366,0.00033,2]
[328110812,1716870640555,-1757.94153,0.00033,2]
[328110813,1716870640565,-150.0,0.00033,7]
[328110814,1716870640574,-152.0,0.00033013,3]
[328110815,1716870640584,-454.0,0.00033013,5]
[328110816,1716870640593,-163.68874082,0.00033046,2]
[328110817,1716870640602,-281.58,0.00033048,6]
[328110818,1716870640612,-167.052811,0.00033048,42]
[328110819,1716870640621,-700.0,0.00033054,10]
[328110820,1716870640630,-700.0,0.00033054,10]
[328110821,1716870640640,-11632.09786471,0.00033068,2]
[328110822,1716870640651,-500.0,0.000331,2]
[328110823,1716870640660,-163.68874082,0.00033125,2]
[328110824,1716870640670,-500.0,0.000332,2]
[328110825,1716870640679,-2000.0,0.000332,10]
[328110826,1716870640689,-163.68874082,0.00033203,2]
[328110827,1716870640699,-600.0,0.00033232,2]
[328110828,1716870640709,-157.052806,0.00033248,42]
[328110829,1716870640719,-500.0,0.00033257,2]
[328110830,1716870640731,-500.0,0.00033257,2]
[328110831,1716870640740,-500.0,0.00033257,2]
[328110832,1716870640749,-500.0,0.00033257,2]
[328110833,1716870640759,-500.0,0.00033257,2]
[328110834,1716870640768,-500.0,0.00033257,2]
[328110835,1716870640778,-400.0,0.0003327,2]
[328110836,1716870640787,-400.0,0.0003327,2]
[328110837,1716870640797,-185.64369851,0.0003327,2]
[328110838,1716870640807,-150.0,0.00033279,2]
[328110839,1716870640817,-892.40108754,0.0003328,5]
[328110840,1716870640827,-163.68874082,0.00033281,2]
[328110841,1716870640836,-892.40108745,0.00033287,5]
[328110842,1716870640846,-892.40108745,0.00033293,5]
[328110843,1716870640856,-960.90483074,0.00033298,4]
[328110844,1716870640865,-500.0,0.00033299,6]
[328110845,1716870640875,-500.0,0.00033299,6]
[328110846,1716870640885,-500.0,0.00033299,6]
[328110847,1716870640894,-892.40108745,0.000333,5]
[328110848,1716870640904,-50375.84394734,0.000333,10]
[328110849,1716870640914,-500.0,0.000333,2]
[328110850,1716870640923,-500.0,0.000333,18]
[328110851,1716870640933,-199.0,0.000333,18]
[328110852,1716870640942,-150.0,0.000333,22]
[328110853,1716870640951,-892.40108745,0.00033307,5]
[328110854,1716870640961,-500.0,0.00033311,6]
[328110855,1716870640970,-500.0,0.00033311,6]
[328110856,1716870640980,-500.0,0.00033311,6]
[328110857,1716870640989,-1255.77,0.00033311,6]
[328110858,1716870640999,-500.0,0.00033311,6]
[328110859,1716870641009,-892.40108745,0.00033313,5]
[328110860,1716870641018,-892.40108745,0.0003332,5]
[328110861,1716870641028,-207.0,0.0003332,2]
[328110862,1716870641037,-208.0,0.0003332,2]
[328110863,1716870641047,-220.0,0.0003332,2]
[328110864,1716870641056,-892.40108745,0.00033326,5]
[328110865,1716870641066,-892.40108745,0.00033333,5]
[328110866,1716870641075,-892.40108745,0.0003334,5]
[328110867,1716870641084,-892.40108745,0.00033346,5]
[328110868,1716870641093,-167.052811,0.00033348,42]
[328110869,1716870641102,-150.72,0.00033349,2]
[328110870,1716870641111,-500.0,0.00033349,6]
[328110871,1716870641120,-130903.31509557,0.0003335,4]
[328110872,1716870641130,-28259.89694274,0.00033351,7]
[328110873,1716870641139,-500.0,0.00033352,6]
[328110874,1716870641148,-500.0,0.00033352,6]
[328110875,1716870641157,-500.0,0.00033352,6]
[328110876,1716870641167,-892.40108745,0.00033353,5]
[328110877,1716870641176,-236.7861874,0.00033359,7]
[328110878,1716870641185,-236.7861874,0.00033359,7]
[328110879,1716870641194,-236.7861874,0.00033359,7]
[328110880,1716870641203,-236.7861874,0.00033359,7]
[328110881,1716870641213,-236.7861874,0.00033359,7]
[328110882,1716870641224,-236.7861874,0.00033359,7]
[328110883,1716870641235,-236.7861874,0.00033359,7]
[328110884,1716870641244,-236.7861874,0.00033359,7]
[328110885,1716870641255,-236.7861874,0.00033359,7]
[328110886,1716870641264,-236.7861874,0.00033359,7]
[328110887,1716870641273,-236.7861874,0.00033359,7]
[328110888,1716870641282,-236.7861874,0.00033359,7]
[328110889,1716870641291,-236.7861874,0.00033359,7]
[328110890,1716870641301,-236.7861874,0.00033359,7]
[328110891,1716870641312,-236.7861874,0.00033359,7]
[328110892,1716870641321,-236.7861874,0.00033359,7]
[328110893,1716870641331,-236.7861874,0.00033359,7]
[328110894,1716870641339,-236.7861874,0.00033359,7]
[328110895,1716870641349,-236.7861874,0.00033359,7]
[328110896,1716870641358,-237.28,0.00033359,7]
[328110897,1716870641367,-947.21974961,0.00033359,7]
[328110898,1716870641376,-947.21974961,0.00033359,7]
[328110899,1716870641385,-947.21974961,0.00033359,7]
[328110900,1716870641395,-947.21974961,0.00033359,7]
[328110901,1716870641405,-947.21974961,0.00033359,7]
[328110902,1716870641415,-947.21974961,0.00033359,7]
[328110903,1716870641423,-947.21974961,0.00033359,7]
[328110904,1716870641433,-947.21974961,0.00033359,7]
[328110905,1716870641442,-947.21974961,0.00033359,7]
[328110906,1716870641451,-947.21974961,0.00033359,7]
[328110907,1716870641460,-947.21974961,0.00033359,7]
[328110908,1716870641469,-947.21974961,0.00033359,7]
[328110909,1716870641481,-947.21974961,0.00033359,7]
[328110910,1716870641490,-947.21974961,0.00033359,7]
[328110911,1716870641499,-156.35802984,0.00033359,7]
[328110912,1716870641507,-156.35802984,0.00033359,7]
[328110913,1716870641517,-156.35802984,0.00033359,7]
[328110914,1716870641526,-156.35802984,0.00033359,7]
[328110915,1716870641535,-156.35802984,0.00033359,7]
[328110916,1716870641544,-156.35802984,0.00033359,7]
[328110917,1716870641553,-156.35802984,0.00033359,7]
[328110918,1716870641562,-156.35802984,0.00033359,7]
[328110919,1716870641572,-156.35802984,0.00033359,7]
[328110920,1716870641582,-156.85,0.00033359,7]
[328110921,1716870641591,-312.79105968,0.00033359,7]
[328110922,1716870641600,-312.79105968,0.00033359,7]
[328110923,1716870641610,-312.79105968,0.00033359,7]
[328110924,1716870641619,-312.79105968,0.00033359,7]
[328110925,1716870641628,-312.79105968,0.00033359,7]
[328110926,1716870641637,-312.79105968,0.00033359,7]
[328110927,1716870641646,-312.79105968,0.00033359,7]
[328110928,1716870641657,-312.79105968,0.00033359,7]
[328110929,1716870641667,-312.79105968,0.00033359,7]
[328110930,1716870641676,-312.79105968,0.00033359,7]
[328110931,1716870641684,-312.79105968,0.00033359,7]
[328110932,1716870641694,-312.79105968,0.00033359,7]
[328110933,1716870641703,-312.79105968,0.00033359,7]
[328110934,1716870641712,-312.79105968,0.00033359,7]
[328110935,1716870641721,-163.93526683,0.00033359,7]
[328110936,1716870641734,-164.43,0.00033359,7]
[328110937,1716870641744,-164.12276683,0.00033359,7]
[328110938,1716870641752,-164.12276683,0.00033359,7]
[328110939,1716870641761,-164.12276683,0.00033359,7]
[328110940,1716870641770,-164.12276683,0.00033359,7]
[328110941,1716870641779,-164.12276683,0.00033359,7]
[328110942,1716870641788,-171.40946993,0.00033359,7]
[328110943,1716870641797,-171.40946993,0.00033359,7]
[328110944,1716870641807,-171.40946993,0.00033359,7]
[328110945,1716870641815,-171.40946993,0.00033359,7]
[328110946,1716870641825,-171.40946993,0.00033359,7]
[328110947,1716870641833,-171.9,0.00033359,7]
[328110948,1716870641842,-205.76636392,0.00033359,7]
[328110949,1716870641851,-205.76636392,0.00033359,7]
[328110950,1716870641860,-205.76636392,0.00033359,7]
[328110951,1716870641871,-205.76636392,0.00033359,7]
[328110952,1716870641879,-205.76636392,0.00033359,7]
[328110953,1716870641888,-205.76636392,0.00033359,7]
[328110954,1716870641897,-205.76636392,0.00033359,7]
[328110955,1716870641907,-205.76636392,0.00033359,7]
[328110956,1716870641916,-205.76636392,0.00033359,7]
[328110957,1716870641925,-205.76636392,0.00033359,7]
[328110958,1716870641934,-205.76636392,0.00033359,7]
[328110959,1716870641943,-205.76636392,0.00033359,7]
[328110960,1716870641953,-205.76636392,0.00033359,7]
[328110961,1716870641963,-205.76636392,0.00033359,7]
[328110962,1716870641975,-306.44392398,0.00033359,2]
[328110963,1716870641984,-174.30997392,0.00033359,2]
[328110964,1716870641993,-11122.54233372,0.00033359,2]
[328110965,1716870642002,-163.68874082,0.00033359,2]
[328110966,1716870642010,-167.27008074,0.00033359,10]
[328110967,1716870642019,-3068.52898551,0.00033359,2]
[328110968,1716870642028,-866.19268229,0.00033359,2]
[328110969,1716870642037,-595.18147183,0.00033359,2]
[328110970,1716870642047,-150.72,0.0003336,2]
[328110971,1716870642056,-7085.82662321,0.00033366,2]
[328110972,1716870642064,-500.0,0.00033369,6]
[328110973,1716870642073,-581.86501445,0.00033369,6]
[328110974,1716870642083,-500.0,0.00033369,6]
[328110975,1716870642093,-587.47291923,0.00033369,6]
[328110976,1716870642101,-500.0,0.00033369,6]
[328110977,1716870642110,-500.0,0.00033369,6]
[328110978,1716870642119,-1255.77,0.00033369,6]
[328110979,1716870642128,-500.0,0.00033369,6]
[328110980,1716870642137,-591.1467507,0.00033369,6]
[328110981,1716870642147,-400.0,0.0003337,2]
[328110982,1716870642155,-400.0,0.0003337,2]
[328110983,1716870642164,-131743.17403242,0.0003337,3]
[328110984,1716870642173,-4602.20461533,0.0003338,4]